bitfinex/quotes_BTCUSD_20250718
["timestamp","ask_amount","ask_price","bid_price","bid_amount"]
[1752823078587,0.3572726,120100.0,120090.0,0.49118325]
[1752823078794,0.81013455,120100.0,120090.0,0.49950992]
[1752823079003,0.81013455,120100.0,120090.0,0.49118325]
[1752823079420,0.81013455,120100.0,120090.0,0.49950992]
[1752823079631,0.81013455,120100.0,120090.0,0.48285651]
[1752823079840,0.81013455,120100.0,120090.0,0.24951006]
[1752823079841,0.36559871,120100.0,120090.0,0.24951006]
[1752823080050,0.81013455,120100.0,120090.0,0.24951006]
[1752823080274,0.81846066,120100.0,120090.0,0.24118332]
[1752823080495,0.3572726,120100.0,120090.0,0.25783673]
[1752823080711,0.81013448,120100.0,120090.0,0.25783625]
[1752823080921,0.35727253,120100.0,120090.0,0.25783625]
[1752823081140,0.17409297,120100.0,120090.0,0.25783625]
[1752823081350,0.14209297,120100.0,120090.0,0.25783625]
[1752823081835,0.14532874,120100.0,120090.0,0.25783625]
[1752823082294,0.31185663,120100.0,120090.0,0.24950965]
[1752823082531,0.34658844,120100.0,120090.0,0.24950965]
[1752823082761,0.34033247,120100.0,120090.0,0.21716546]
[1752823082985,0.34865837,120100.0,120090.0,0.21716546]
[1752823083216,0.34033247,120100.0,120090.0,0.21716546]
[1752823083440,0.34865844,120100.0,120090.0,0.27204408]
[1752823083678,0.34033247,120100.0,120090.0,0.27204408]
[1752823083902,0.15715297,120100.0,120090.0,0.27204408]
[1752823084443,0.13700297,120100.0,120090.0,0.27204408]
[1752823084872,0.16142874,120100.0,120090.0,0.27204408]
[1752823085084,0.15310297,120100.0,120090.0,0.27204408]
[1752823085293,0.13700297,120100.0,120090.0,0.27204408]
[1752823086381,0.47700297,120100.0,120090.0,0.27204408]
[1752823086603,0.47700297,120100.0,120090.0,0.35755436]
[1752823086825,0.34008297,120100.0,120090.0,0.84436631]
[1752823087046,0.34008297,120100.0,120090.0,0.39150436]
[1752823087268,0.34008297,120100.0,120090.0,0.52842436]
[1752823087704,0.34008297,120100.0,120090.0,0.49447436]
[1752823087922,0.34840881,120100.0,120090.0,0.35755436]
[1752823088143,0.52950478,120100.0,120090.0,0.35556436]
[1752823088371,0.84544673,120100.0,120090.0,0.35556436]
[1752823088587,1.16554677,120100.0,120090.0,0.34723789]
[1752823088807,1.16554711,120100.0,120090.0,0.58891136]
[1752823089024,0.99901922,120100.0,120090.0,0.58891136]
[1752823089234,0.99069304,120100.0,120090.0,0.58891136]
[1752823089440,1.16554718,120100.0,120090.0,0.58891143]
[1752823089669,0.99069311,120100.0,120090.0,0.5972381]
[1752823089878,0.99069311,120100.0,120090.0,0.6055647]
[1752823090092,0.52950471,120100.0,120090.0,0.6055647]
[1752823090304,0.98236666,120100.0,120090.0,0.6055647]
[1752823090719,0.99069277,120100.0,120090.0,0.6055647]
[1752823090941,1.15722066,120100.0,120090.0,0.6055647]
[1752823091164,1.14889455,120100.0,120090.0,0.6055647]
[1752823091384,0.98236666,120100.0,120090.0,0.6055647]
[1752823091845,0.97404069,120100.0,120090.0,0.6055647]
[1752823092071,0.97404069,120100.0,120090.0,0.3555647]
[1752823092331,0.52117874,120100.0,120090.0,0.3555647]
[1752823092562,0.50607874,120100.0,120090.0,0.3555647]
[1752823092789,0.17440464,120100.0,120090.0,0.3555647]
[1752823093262,0.16607874,120100.0,120090.0,0.3575547]
[1752823093744,0.14201297,120100.0,120090.0,0.3575547]
[1752823093953,0.14528881,120100.0,120090.0,0.3575547]
[1752823094396,0.14528881,120100.0,120090.0,0.6075547]
[1752823094838,0.13696297,120100.0,120090.0,0.6075547]
[1752823095082,0.13696297,120100.0,120090.0,0.6387547]
[1752823095290,0.15659478,120100.0,120090.0,0.6075547]
[1752823095500,0.15866478,120100.0,120090.0,0.6075547]
[1752823095710,0.18209082,120100.0,120090.0,0.6075547]
[1752823096549,0.19041693,120100.0,120090.0,0.6075547]
[1752823096755,0.63495277,120100.0,120090.0,0.6075547]
[1752823097165,0.17376478,120100.0,120090.0,0.6075547]
[1752823097807,0.62662673,120100.0,120090.0,0.6075547]
[1752823098218,0.63495277,120100.0,120090.0,0.6075547]
[1752823098426,0.63495277,120100.0,120090.0,0.3575547]
[1752823099043,0.62662673,120100.0,120090.0,0.3575547]
[1752823099246,0.63495284,120100.0,120090.0,0.3492281]
[1752823099449,0.34029267,120100.0,120090.0,0.3575547]
[1752823099656,0.80148073,120100.0,120090.0,0.32424774]
[1752823099831,0.80148073,120100.0,120090.0,0.34723823]
[1752823100046,0.34861878,120100.0,120090.0,0.3472383]
[1752823100249,0.8014808,120100.0,120090.0,0.3472383]
[1752823100474,0.79315462,120100.0,120090.0,0.35556497]
[1752823100682,0.79315462,120100.0,120090.0,0.35556449]
[1752823101106,0.61830076,120100.0,120090.0,0.35556449]
[1752823101524,0.62662673,120100.0,120090.0,0.35556449]
[1752823102174,0.79315462,120100.0,120090.0,0.31393066]
[1752823102376,0.81674073,120100.0,120090.0,0.33058475]
[1752823102592,0.82506705,120100.0,120090.0,0.33891163]
[1752823102798,0.82506705,120100.0,120090.0,0.33891169]
[1752823102997,0.81674073,120100.0,120090.0,0.34723843]
[1752823103203,0.82506698,120100.0,120090.0,0.33891169]
[1752823103402,0.82506698,120100.0,120090.0,0.32225774]
[1752823103643,0.82506753,120100.0,120090.0,0.15571598]
[1752823103858,0.82506753,120100.0,120090.0,0.16404299]
[1752823104060,0.82506753,120100.0,120090.0,0.33058475]
[1752823104263,0.81674114,120100.0,120090.0,0.33058475]
[1752823104483,0.641887,120100.0,120090.0,0.3555651]
[1752823104692,0.641887,120100.0,120090.0,0.35556462]
[1752823105127,0.65021325,120100.0,120090.0,0.35556462]
[1752823105350,0.641887,120100.0,120090.0,0.35556462]
[1752823106190,0.641887,120100.0,120090.0,0.34723802]
[1752823106406,0.641887,120100.0,120090.0,0.35556462]
[1752823107006,0.641887,120100.0,120090.0,0.34723802]
[1752823107264,0.80841489,120100.0,120090.0,0.33891135]
[1752823107464,0.81674114,120100.0,120090.0,0.34723802]
[1752823107686,0.36387919,120100.0,120090.0,0.34723802]
[1752823107880,0.81674114,120100.0,120090.0,0.34723802]
[1752823108087,0.82506753,120100.0,120090.0,0.33891149]
[1752823108509,0.81674114,120100.0,120090.0,0.33891149]
[1752823108728,0.81674114,120100.0,120090.0,0.3472383]
[1752823108922,0.80841489,120100.0,120090.0,0.33891149]
[1752823109124,0.82506746,120100.0,120090.0,0.1473889]
[1752823109330,0.37220551,120100.0,120090.0,0.1473889]
[1752823109455,0.81674107,120100.0,120090.0,0.15571591]
[1752823109663,0.82506739,120100.0,120090.0,0.32225774]
[1752823109904,0.82506739,120100.0,120090.0,0.15571598]
[1752823110110,0.82506739,120100.0,120090.0,0.1473889]
[1752823110313,0.38053183,120100.0,120090.0,0.1473889]
[1752823110520,0.82506781,120100.0,120090.0,0.1473889]
[1752823110775,0.82506781,120100.0,120090.0,0.15571598]
[1752823111135,0.81674142,120100.0,120090.0,0.1473889]
[1752823111366,0.81674142,120100.0,120090.0,0.15571598]
[1752823111790,0.67990142,120100.0,120090.0,0.007]
[1752823111994,1.14841531,120100.0,120090.0,0.007]
[1752823115170,1.14837531,120100.0,120090.0,0.007]
[1752823119408,1.14837531,120100.0,120090.0,0.00579869]
[1752823119735,1.24842644,120100.0,120090.0,0.00579869]
[1752823119967,1.33418606,120100.0,120090.0,0.00579869]
[1752823120395,1.33418606,120100.0,120090.0,0.00279869]
[1752823120777,0.20685407,120070.0,120060.0,0.0002]
[1752823120979,0.79861602,120070.0,120060.0,0.0002]
[1752823121419,0.34878407,120070.0,120060.0,0.0002]
[1752823122060,0.80164602,120070.0,120060.0,0.00852916]
[1752823122268,0.80164602,120070.0,120060.0,0.0002]
[1752823122501,0.80164602,120070.0,120060.0,0.0042]
[1752823122725,0.80164602,120070.0,120060.0,0.01552916]
[1752823123363,0.80168602,120070.0,120060.0,0.0072]
[1752823123805,0.80879089,120070.0,120060.0,0.0072]
[1752823124258,0.80046291,120070.0,120060.0,0.0072]
[1752823124689,0.36330096,120070.0,120060.0,0.01552916]
[1752823124913,0.36330096,120070.0,120060.0,0.0072]
[1752823124914,0.81616291,120070.0,120060.0,0.0072]
[1752823125993,0.82449138,120070.0,120060.0,0.01552909]
[1752823126215,0.37162943,120070.0,120060.0,0.01552909]
[1752823126441,0.80879138,120070.0,120060.0,0.01552909]
[1752823126663,0.80879138,120070.0,120060.0,0.01552916]
[1752823126898,0.80879138,120070.0,120060.0,0.0072]
[1752823127125,0.80879138,120070.0,120060.0,0.01552916]
[1752823127326,0.80879138,120070.0,120060.0,0.0072]
[1752823127743,0.80046291,120070.0,120060.0,0.0072]
[1752823127953,0.80046291,120070.0,120060.0,0.01552916]
[1752823128208,0.80046291,120070.0,120060.0,0.0072]
[1752823128425,0.35592943,120070.0,120060.0,0.01552916]
[1752823128634,0.80879138,120070.0,120060.0,0.01552916]
[1752823128861,0.80879138,120070.0,120060.0,0.0072]
[1752823129074,0.80879138,120070.0,120060.0,0.01552916]
[1752823129752,0.80879138,120070.0,120060.0,0.21947296]
[1752823129969,0.80879138,120070.0,120060.0,0.19877058]
[1752823130213,0.80879138,120070.0,120060.0,0.20709961]
[1752823130382,0.80879138,120070.0,120060.0,0.19877065]
[1752823131366,0.80879138,120070.0,120060.0,0.20709961]
[1752823131585,0.80879138,120070.0,120060.0,0.2154285]
[1752823131813,0.80879138,120070.0,120060.0,0.20709961]
[1752823132022,0.80046291,120070.0,120060.0,0.25362209]
[1752823132242,0.80046291,120070.0,120060.0,0.2452932]
[1752823132681,0.34760096,120070.0,120060.0,0.25362209]
[1752823132902,0.80046291,120070.0,120060.0,0.2452932]
[1752823133124,0.34760096,120070.0,120060.0,0.23696424]
[1752823133339,0.34760054,120070.0,120060.0,0.24529313]
[1752823133551,0.80879082,120070.0,120060.0,0.24732313]
[1752823133775,0.80181922,120070.0,120060.0,0.2091292]
[1752823134005,0.81841922,120070.0,120060.0,0.19877038]
[1752823134218,0.81837922,120070.0,120060.0,0.19877045]
[1752823134442,0.83477922,120070.0,120060.0,0.19044149]
[1752823134872,0.69801922,120070.0,120060.0,0.18211246]
[1752823135075,0.82645124,120070.0,120060.0,0.02385825]
[1752823135344,0.82645124,120070.0,120060.0,0.01552916]
[1752823135771,0.82645124,120070.0,120060.0,0.19044162]
[1752823135986,0.82645124,120070.0,120060.0,0.02385825]
[1752823136203,0.82645124,120070.0,120060.0,0.01552916]
[1752823136413,0.82645124,120070.0,120060.0,0.02385825]
[1752823136647,0.82645124,120070.0,120060.0,0.19877065]
[1752823136648,0.37358929,120070.0,120060.0,0.19877065]
[1752823136857,0.82645124,120070.0,120060.0,0.19044162]
[1752823137092,0.82645124,120070.0,120060.0,0.0072]
[1752823137307,0.82645124,120070.0,120060.0,0.0042]
[1752823137521,0.23682929,120070.0,120060.0,0.0002]
[1752823137738,0.81912305,120070.0,120060.0,0.0012]
[1752823137952,0.81912305,120070.0,120060.0,0.0022]
[1752823138600,0.3662211,120070.0,120060.0,0.0022]
[1752823138800,0.81908305,120070.0,120060.0,0.0022]
[1752823139683,1.15908305,120070.0,120060.0,0.0022]
[1752823140766,0.7062211,120070.0,120060.0,0.0012]
[1752823141000,1.15908305,120070.0,120060.0,0.0012]
[1752823141219,1.15908305,120070.0,120060.0,0.0002]
[1752823141650,0.5695011,120070.0,120060.0,0.0002]
[1752823141901,1.15908305,120070.0,120060.0,0.0002]
[1752823142549,0.69911623,120070.0,120060.0,0.0002]
[1752823142766,1.15197818,120070.0,120060.0,0.0002]
[1752823143217,1.01525818,120070.0,120060.0,0.0002]
[1752823143434,1.15197818,120070.0,120060.0,0.0002]
[1752823143622,1.01525818,120070.0,120060.0,0.0002]
[1752823143860,1.15197818,120070.0,120060.0,0.0002]
[1752823145572,0.56239623,120070.0,120060.0,0.0002]
[1752823145787,1.15197818,120070.0,120060.0,0.0002]
[1752823146395,1.01525818,120070.0,120060.0,0.0002]
[1752823146611,1.15197818,120070.0,120060.0,0.0002]
[1752823146835,1.01525818,120070.0,120060.0,0.0002]
[1752823147052,1.15197818,120070.0,120060.0,0.0002]
[1752823148131,1.1591426,120070.0,120060.0,0.0002]
[1752823149203,1.21735208,120070.0,120060.0,0.0002]
[1752823151078,1.72842351,120070.0,120060.0,0.0002]
[1752823153711,1.21735208,120070.0,120060.0,0.0002]
[1752823155331,1.72842351,120070.0,120060.0,0.0002]
[1752823157071,0.70628065,120070.0,120060.0,0.0002]
[1752823157295,1.21731208,120070.0,120060.0,0.0002]
[1752823157724,0.70624065,120070.0,120060.0,0.0002]
[1752823157950,1.21731208,120070.0,120060.0,0.0002]
[1752823158178,1.08063208,120070.0,120060.0,0.0002]
[1752823158409,1.21731208,120070.0,120060.0,0.0002]
[1752823159506,1.08063208,120070.0,120060.0,0.0002]
[1752823159749,1.21731208,120070.0,120060.0,0.0002]
[1752823159993,1.72838351,120070.0,120060.0,0.0002]
[1752823160970,1.91419426,120070.0,120060.0,0.0002]
[1752823161196,1.37329787,120070.0,120060.0,0.0002]
[1752823161870,1.37157182,120070.0,120060.0,0.0002]
[1752823162315,1.37257182,120070.0,120060.0,0.0002]
[1752823162644,1.37457182,120070.0,120060.0,0.0002]
[1752823165578,1.40131187,120070.0,120060.0,0.0002]
[1752823167377,6.40131187,120070.0,120060.0,0.0002]
[1752823167669,1.13731017,120050.0,120040.0,0.0002]
[1752823167887,1.36159045,120050.0,120040.0,0.0002]
[1752823168105,1.79044007,120050.0,120040.0,0.0002]
[1752823168320,1.81546107,120050.0,120040.0,0.0002]
[1752823168541,6.84220112,120050.0,120040.0,0.0002]
[1752823168978,6.84228404,120050.0,120040.0,0.0002]
[1752823169365,5.9332712,120050.0,120040.0,0.0002]
[1752823169632,6.84328404,120050.0,120040.0,0.0002]
[1752823169835,6.84228404,120050.0,120040.0,0.0002]
[1752823170256,6.84428404,120050.0,120040.0,0.0002]
[1752823170587,6.81754399,120050.0,120040.0,0.0002]
[1752823171247,1.81754399,120050.0,120040.0,0.0002]
[1752823171804,0.82277153,120050.0,120040.0,0.0002]
[1752823172052,1.73178437,120050.0,120040.0,0.0002]
[1752823174086,1.27727795,120050.0,120040.0,0.0002]
[1752823174511,1.27723795,120050.0,120040.0,0.0002]
[1752823176061,1.47827795,120050.0,120040.0,0.0002]
[1752823178183,1.56403757,120050.0,120040.0,0.0002]
[1752823178376,1.47827795,120050.0,120040.0,0.0002]
[1752823180415,1.46277795,120050.0,120040.0,0.0002]
[1752823181298,1.47867795,120050.0,120040.0,0.0002]
[1752823183718,0.7716204,120050.0,120040.0,0.00226]
[1752823183914,1.33770582,120050.0,120040.0,0.0002]
[1752823184676,1.43886544,120050.0,120040.0,0.0002]
[1752823185101,1.30226544,120050.0,120040.0,0.0002]
[1752823185515,1.43882544,120050.0,120040.0,0.0002]
[1752823186629,1.35306582,120050.0,120040.0,0.0002]
[1752823188286,1.35406582,120050.0,120040.0,0.0002]
[1752823188527,1.90862337,120050.0,120040.0,0.0002]
[1752823188747,0.56862787,120030.0,120020.0,0.0125]
[1752823188986,0.56862787,120030.0,120020.0,1e-08]
[1752823188987,6.75854378,120030.0,120020.0,1e-08]
[1752823189403,6.78668978,120030.0,120020.0,1e-08]
[1752823189606,6.81153391,120030.0,120020.0,1e-08]
[1752823189959,6.83670587,120030.0,120020.0,1e-08]
[1752823190168,0.52951154,120020.0,120010.0,1e-08]
[1752823190377,6.78284428,120020.0,120010.0,1e-08]
[1752823190584,6.80801624,120020.0,120010.0,1e-08]
[1752823191182,0.56122612,120010.0,120000.0,1e-08]
[1752823191550,6.7225712,120010.0,120000.0,1e-08]
[1752823191757,6.7225712,120010.0,119950.0,0.00275]
[1752823191758,0.1917453,119950.0,119940.0,0.18342469]
[1752823192072,0.1532325,119950.0,119940.0,0.28560927]
[1752823192207,0.33664162,119950.0,119940.0,0.27727226]
[1752823192415,0.32830503,119950.0,119940.0,0.28611086]
[1752823192619,0.33664162,119950.0,119940.0,0.28611086]
[1752823192839,0.33664162,119950.0,119940.0,0.27777378]
[1752823193049,0.33664217,119950.0,119940.0,0.26943663]
[1752823193259,0.77447588,119950.0,119940.0,0.00450152]
[1752823194066,0.77447588,119950.0,119940.0,0.16725156]
[1752823194284,0.78281268,119950.0,119940.0,0.00050152]
[1752823194451,0.77447609,119950.0,119940.0,0.16725156]
[1752823194648,0.77447609,119950.0,119940.0,0.18892607]
[1752823195011,0.59940294,119950.0,119940.0,0.19226315]
[1752823195210,0.14489632,119950.0,119940.0,0.23190016]
[1752823195383,0.14489632,119950.0,119940.0,0.22022607]
[1752823195587,0.32830544,119950.0,119940.0,0.22022607]
[1752823195971,0.3366421,119950.0,119940.0,0.22656315]
[1752823196397,0.16156923,119950.0,119940.0,0.23690016]
[1752823196641,0.1615693,119950.0,119940.0,0.23690016]
[1752823196855,0.15323271,119950.0,119940.0,0.23690016]
[1752823197069,0.33664196,119950.0,119940.0,0.22022607]
[1752823197283,0.16156916,119950.0,119940.0,0.22022614]
[1752823197499,0.33664196,119950.0,119940.0,0.22022614]
[1752823197732,0.34497876,119950.0,119940.0,0.22022614]
[1752823197986,0.33664196,119950.0,119940.0,0.22022621]
[1752823198225,0.34497876,119950.0,119940.0,0.22022621]
[1752823199084,0.3283053,119950.0,119940.0,0.22856336]
[1752823199341,0.33668182,119950.0,119940.0,0.21188892]
[1752823199571,4e-05,119950.0,119940.0,0.80894619]
[1752823199784,0.1366,119950.0,119940.0,0.80894619]
[1752823200001,0.14493618,119950.0,119940.0,0.35443977]
[1752823200220,0.1366,119950.0,119940.0,0.31407336]
[1752823200441,0.14493618,119950.0,119940.0,0.31407336]
[1752823201093,0.15327257,119950.0,119940.0,0.31407336]
[1752823201322,0.32000871,119950.0,119940.0,0.30573635]
[1752823201545,0.32000871,119950.0,119940.0,0.31407336]
[1752823201546,0.16160902,119950.0,119940.0,0.31407336]
[1752823201768,4e-05,119950.0,119940.0,0.31407336]
[1752823201997,0.1366,119950.0,119940.0,0.31407336]
[1752823202222,0.14493618,119950.0,119940.0,0.31407336]
[1752823202448,0.16160888,119950.0,119940.0,0.31407336]
[1752823202657,0.15327243,119950.0,119940.0,0.31407336]
[1752823202889,0.1366,119950.0,119940.0,0.31407336]
[1752823203109,4e-05,119950.0,119940.0,0.8543394]
[1752823203330,0.1366,119950.0,119940.0,0.8543394]
[1752823203534,4e-05,119950.0,119940.0,0.9908994]
[1752823204794,4e-05,119950.0,119940.0,1.2819994]
[1752823205205,4e-05,119950.0,119940.0,0.83449298]
[1752823205331,4e-05,119950.0,119940.0,1.2889994]
[1752823206213,0.00757824,119990.0,119980.0,0.16669444]
[1752823206418,0.16984983,120030.0,120010.0,0.18331769]
[1752823206703,0.16984983,120030.0,120020.0,0.19163387]
[1752823206704,0.14489062,120030.0,120020.0,0.19163387]
[1752823207074,0.16060467,120030.0,120020.0,0.19163387]
[1752823207253,0.13656,120030.0,120020.0,0.23767999]
[1752823207499,0.71566547,120040.0,120030.0,0.17495626]
[1752823207712,0.87039547,120040.0,120030.0,0.18328737]
[1752823207923,0.87039547,120040.0,120030.0,0.21136537]
[1752823208136,0.87039547,120040.0,120030.0,0.21946634]
[1752823208351,0.87872595,120040.0,120030.0,0.21946634]
[1752823208567,0.41588933,120040.0,120030.0,0.2028044]
[1752823208771,1.13562857,120040.0,120030.0,0.46113551]
[1752823208977,1.12729809,120040.0,120030.0,0.26974696]
[1752823209179,0.67283167,120040.0,120030.0,0.26974696]
[1752823209351,0.66950112,120040.0,120030.0,0.26974696]
[1752823210004,1.11330109,120040.0,120030.0,0.26974696]
[1752823210424,1.12078703,120040.0,120030.0,0.26974696]
[1752823210848,1.11578703,120040.0,120030.0,0.26974696]
[1752823211196,1.11678703,120040.0,120030.0,0.26974696]
[1752823211415,1.11678703,120040.0,120030.0,0.25]
[1752823211564,1.13238703,120040.0,120030.0,0.25]
[1752823212658,0.54775612,120030.0,120020.0,0.00050152]
[1752823212864,0.99664609,120030.0,120020.0,0.00050152]
[1752823213532,1.13316609,120030.0,120020.0,0.00050152]
[1752823213959,0.68936612,120030.0,120020.0,0.00050152]
[1752823214164,1.13316609,120030.0,120020.0,0.00050152]
[1752823214376,0.99664609,120030.0,120020.0,0.00050152]
[1752823214597,1.13316609,120030.0,120020.0,0.00050152]
[1752823215231,1.13316609,120030.0,120020.0,0.00150152]
[1752823215449,1.13316609,120030.0,120020.0,0.00050152]
[1752823216309,1.13316609,120030.0,120020.0,0.00250152]
[1752823217356,1.13320609,120030.0,120020.0,0.00250152]
[1752823218779,1.31901684,120030.0,120020.0,0.00250152]
[1752823218998,0.18334811,119990.0,119980.0,0.01666944]
[1752823219222,0.76366808,119990.0,119980.0,0.10217972]
[1752823219447,0.76366808,119990.0,119970.0,0.0154]
[1752823219448,0.16669444,119980.0,119970.0,0.0154]
[1752823219675,0.16670834,119970.0,119960.0,0.21545377]
[1752823219890,0.13656,119970.0,119960.0,0.30929974]
[1752823220107,0.13656,119970.0,119960.0,0.36523123]
[1752823220324,0.13656,119970.0,119960.0,0.36535649]
[1752823220744,0.30326834,119970.0,119960.0,0.31658518]
[1752823220999,0.13656,119970.0,119960.0,0.32492094]
[1752823221225,0.3282736,119970.0,119960.0,0.32503634]
[1752823221453,0.76373864,119970.0,119960.0,0.08963554]
[1752823221674,0.31993867,119970.0,119960.0,0.08963554]
[1752823222115,0.31993867,119970.0,119960.0,0.08563554]
[1752823222330,0.31993826,119970.0,119960.0,0.26902951]
[1752823222540,0.33660866,119970.0,119960.0,0.27736534]
[1752823222750,0.34494407,119970.0,119960.0,0.26902965]
[1752823222957,0.344944,119970.0,119960.0,0.25235778]
[1752823223179,0.33660914,119970.0,119960.0,0.26169375]
[1752823223389,0.33660914,119970.0,119960.0,0.26469375]
[1752823223821,0.3282738,119970.0,119960.0,0.27302958]
[1752823224241,0.33660914,119970.0,119960.0,0.26469375]
[1752823224452,0.33660914,119970.0,119960.0,0.27302965]
[1752823224776,0.15323019,119970.0,119960.0,0.2897011]
[1752823225228,0.16156546,119970.0,119960.0,0.2897011]
[1752823225463,0.3282738,119970.0,119960.0,0.28136548]
[1752823225677,0.33660914,119970.0,119960.0,0.28136548]
[1752823225908,0.34327408,119970.0,119960.0,0.27302979]
[1752823226122,0.32827408,119970.0,119960.0,0.28136569]
[1752823226759,0.32827408,119970.0,119960.0,0.29803728]
[1752823226987,0.31993874,119970.0,119960.0,0.29803693]
[1752823227224,1.19475833,119970.0,119960.0,0.00412526]
[1752823227453,1.22625833,119970.0,119960.0,0.00412526]
[1752823227894,1.14049871,119970.0,119960.0,0.00412526]
[1752823228314,1.14049871,119970.0,119960.0,0.00112526]
[1752823230873,0.69669874,119970.0,119960.0,0.00112526]
[1752823231128,0.53887874,119970.0,119960.0,0.1678475]
[1752823231351,0.65168361,119970.0,119960.0,0.00012526]
[1752823231571,0.65268361,119970.0,119960.0,0.00012526]
[1752823232012,0.67344361,119970.0,119960.0,0.00012526]
[1752823232227,1.13284358,119970.0,119960.0,0.00012526]
[1752823232457,1.2186032,119970.0,119960.0,0.00012526]
[1752823233119,1.13284358,119970.0,119960.0,0.00012526]
[1752823235591,1.21835386,119970.0,119960.0,0.00012526]
[1752823237791,1.23289471,119970.0,119960.0,0.00012526]
[1752823238659,1.43305471,119970.0,119960.0,0.00012526]
[1752823241577,0.18343997,119930.0,119910.0,0.23566745]
[1752823241782,0.16157548,119920.0,119910.0,0.33441856]
[1752823241918,0.16157548,119920.0,119910.0,0.35320673]
[1752823242134,0.1613537,119920.0,119910.0,0.3448677]
[1752823242362,0.16969259,119920.0,119910.0,0.3448677]
[1752823242769,0.1530146,119920.0,119910.0,0.3532068]
[1752823242975,0.17747613,119920.0,119910.0,0.3532068]
[1752823243178,0.1530146,119920.0,119910.0,0.3518677]
[1752823243426,0.3281312,119920.0,119910.0,0.31262859]
[1752823243624,0.31979287,119920.0,119910.0,0.31032782]
[1752823243780,0.32813169,119920.0,119910.0,0.33534587]
[1752823243973,0.13633773,119920.0,119910.0,0.33768497]
[1752823244435,0.14387627,119920.0,119910.0,0.34168497]
[1752823244763,0.13633773,119920.0,119910.0,0.34168497]
[1752823244972,0.35667555,119930.0,119920.0,0.19179368]
[1752823245172,0.49327555,119930.0,119920.0,0.19179368]
[1752823245580,0.5016136,119930.0,119920.0,0.19179368]
[1752823245791,0.50161353,119930.0,119920.0,0.19179368]
[1752823245999,0.71347566,119930.0,119920.0,0.18345535]
[1752823246333,0.70513795,119930.0,119920.0,0.18345535]
[1752823246528,0.68943795,119930.0,119920.0,0.18345535]
[1752823246769,0.68732795,119930.0,119920.0,0.17511667]
[1752823246945,0.69660011,119930.0,119920.0,0.17511674]
[1752823247112,0.68826213,119930.0,119920.0,0.17511674]
[1752823247313,0.34,119920.0,119910.0,0.30866664]
[1752823247537,0.34833868,119920.0,119910.0,0.30866664]
[1752823247984,0.34833861,119920.0,119910.0,0.30866664]
[1752823248316,0.35667708,119920.0,119910.0,0.30866664]
[1752823248560,0.54013201,119920.0,119910.0,0.32000629]
[1752823248761,0.53179368,119920.0,119910.0,0.32000629]
[1752823248989,0.36501583,119920.0,119910.0,0.31700629]
[1752823249241,0.50161583,119920.0,119910.0,0.32534539]
[1752823249673,0.48493826,119920.0,119910.0,0.32534539]
[1752823249890,0.50161506,119920.0,119910.0,0.32534539]
[1752823250328,0.45529767,119930.0,119920.0,0.19179368]
[1752823250496,0.48493764,119930.0,119920.0,0.31644222]
[1752823250724,0.50161326,119930.0,119920.0,0.31644222]
[1752823250874,0.50995131,119930.0,119920.0,0.27730396]
[1752823251242,0.38168998,119930.0,119920.0,0.26896556]
[1752823251459,0.68505392,119930.0,119920.0,0.2773041]
[1752823251678,0.68505392,119930.0,119920.0,0.2866425]
[1752823251679,0.50161367,119930.0,119920.0,0.2866425]
[1752823252112,0.49327562,119930.0,119920.0,0.2866425]
[1752823252324,0.5016136,119930.0,119920.0,0.2866425]
[1752823252742,0.50995165,119930.0,119920.0,0.2866425]
[1752823252992,0.5016136,119930.0,119920.0,0.2876425]
[1752823253194,0.50995165,119930.0,119920.0,0.2876425]
[1752823253585,0.49327562,119930.0,119920.0,0.34699393]
[1752823253804,0.49327535,119930.0,119920.0,0.34699393]
[1752823254017,0.35667535,119930.0,119920.0,0.34699393]
[1752823254247,0.11033281,119960.0,119950.0,0.18340946]
[1752823254461,0.39476678,119960.0,119950.0,0.17507287]
[1752823254664,0.39476678,119960.0,119950.0,0.19174605]
[1752823254872,0.39476678,119960.0,119950.0,0.2000825]
[1752823255086,0.22804454,119960.0,119950.0,0.20841889]
[1752823255310,0.56804454,119960.0,119950.0,0.20841848]
[1752823255527,0.5597085,119960.0,119950.0,0.24584575]
[1752823255738,0.4231085,119960.0,119950.0,0.24584575]
[1752823255952,0.55970808,119960.0,119950.0,0.24584575]
[1752823256155,0.74310205,119960.0,119950.0,0.23750943]
[1752823256375,0.58571585,119960.0,119950.0,0.24584575]
[1752823256577,0.57737981,119960.0,119950.0,0.24584575]
[1752823257291,0.58495727,119960.0,119950.0,0.24584575]
[1752823257507,0.50260672,119960.0,119950.0,0.36365603]
[1752823257716,0.15427103,119960.0,119950.0,0.36365603]
[1752823257898,0.17094241,119960.0,119950.0,0.36365603]
[1752823258165,0.17094234,119960.0,119950.0,0.36365603]
[1752823258345,0.17094234,119960.0,119950.0,0.34795603]
[1752823258505,0.17094234,119960.0,119950.0,0.31067915]
[1752823259155,0.15427103,119960.0,119950.0,0.31067915]
[1752823259369,0.1366,119960.0,119950.0,0.31067915]
[1752823259590,0.1366,119960.0,119950.0,0.32607915]
[1752823259720,0.1366,119960.0,119950.0,0.41183877]
[1752823260172,0.1366,119960.0,119950.0,0.41283877]
[1752823260665,0.1366,119960.0,119950.0,0.41183877]
[1752823261062,0.1366,119960.0,119950.0,0.41383877]
[1752823261291,0.1366,119960.0,119950.0,0.41583877]
[1752823261977,0.1532711,119960.0,119950.0,0.38383877]
[1752823262193,0.1366,119960.0,119950.0,0.38383877]
[1752823262408,0.14493555,119960.0,119950.0,0.38383877]
[1752823262645,0.1366,119960.0,119950.0,0.38383877]
[1752823262846,0.14493548,119960.0,119950.0,0.38383877]
[1752823263314,0.1532711,119960.0,119950.0,0.38383877]
[1752823263532,0.1366,119960.0,119950.0,0.38383877]
[1752823263739,0.14493548,119960.0,119950.0,0.38383877]
[1752823263925,0.15327103,119960.0,119950.0,0.38383877]
[1752823264130,0.14493548,119960.0,119950.0,0.38383877]
[1752823264336,0.16160679,119960.0,119950.0,0.38383877]
[1752823264609,0.02500679,119960.0,119950.0,0.38383877]
[1752823264810,0.16156679,119960.0,119950.0,0.38383877]
[1752823265046,0.16156672,119960.0,119950.0,0.38383877]
[1752823265467,0.15323103,119960.0,119950.0,0.38383877]
[1752823266225,0.16156665,119960.0,119950.0,0.38383877]
[1752823266425,0.16990241,119960.0,119950.0,0.38383877]
[1752823266834,0.33662465,119960.0,119950.0,0.38383877]
[1752823267036,0.34496055,119960.0,119950.0,0.37550245]
[1752823267255,0.34496055,119960.0,119950.0,0.38383877]
[1752823267549,0.33662465,119960.0,119950.0,0.38383877]
[1752823267759,0.16156665,119960.0,119950.0,0.38383877]
[1752823268149,0.16990241,119960.0,119950.0,0.38383877]
[1752823268350,0.34496055,119960.0,119950.0,0.38383877]
[1752823268584,0.35242465,119960.0,119950.0,0.38383877]
[1752823268926,0.16156665,119960.0,119950.0,0.38383877]
[1752823269342,0.16990241,119960.0,119950.0,0.38383877]
[1752823270067,0.16990241,119960.0,119950.0,0.29807915]